[Event "44th Chess Olympiad Women 2022"]
[Site "Chennai"]
[Date "2022.07.30"]
[Round "2.5"]
[White "Sebag, Marie"]
[Black "Wafa, Shrook"]
[Result "1-0"]
[WhiteElo "2447"]
[BlackElo "2141"]
[Annotator "TA"]
[PlyCount "227"]
[EventDate "2022.??.??"]
[TimeControl "60"]

{[%evp 20,227,32,34,37,22,64,14,15,16,37,19,32,22,16,17,104,9,18,16,18,-25,22,
30,27,0,0,0,0,0,0,0,0,0,0,0,0,0,0,0,2,2,0,0,0,15,49,44,58,69,58,56,58,36,36,36,
36,36,36,36,36,36,58,36,36,36,36,36,66,36,36,36,36,36,36,36,36,36,36,36,36,36,
36,36,36,36,46,61,62,0,62,16,16,0,24,16,16,16,16,16,16,16,16,16,16,8,16,8,8771,
10511,12793,6107,5812,5181,3193,2294,1716,1591,29959,29961,29960,29962,29964,
29964,29964,29965,29968,29968,29969,29970,29978,29971,29979,29970,29969,29970,
29978,29971,29976,29973,29973,29974,29974,29972,29974,29973,29973,29974,29974,
29975,29975,29976,29976,29977,29977,29976,29976,29977,29977,29978,29978,29979,
29981,29982,29983,29978,29978,0,29983,29982,29983,29984,29984,29984,29984,
29985,29985,29980,29980,29981,29981,29982,29982,29982,29982,29983,29983,29984,
29984,29985,29985,29986,29985,29986,29987,29985,29985,29985,29985,29986,29986,
29987,29987,29988,29988,29989,29989,29990,29995,29996]} 1. e4 {[%emt 0:00:13]}
c5 {[%emt 0:00:12]} 2. Nf3 {[%emt 0:00:12]} d6 {[%emt 0:00:19]} 3. Bb5+ {
[%emt 0:00:25]} Bd7 {[%emt 0:00:31]} 4. Bxd7+ {[%emt 0:02:02]} Qxd7 {[%emt 0:
00:00]} 5. O-O {[%emt 0:01:33]} Nc6 {[%emt 0:01:01]} 6. c3 {[%emt 0:01:29]} Nf6
{[%emt 0:02:31]} 7. Qe2 {[%emt 0:02:00]} g6 {[%emt 0:04:04]} 8. d4 {[%emt 0:00:
00]} cxd4 {[%emt 0:01:45]} 9. cxd4 {[%emt 0:00:07]} Bg7 {[%emt 0:00:13]} 10.
Nc3 {[%emt 0:11:50]} O-O {[%emt 0:02:49]} 11. Rd1 {[%emt 0:07:05]} a6 {[%emt 0:
00:00] [#] B52: Sicilian: Moscow Variation with 3...Bd7.} 12. h3 $146 {[%emt 0:
00:00]} ({Predecessor:} 12. Bg5 e6 13. d5 exd5 14. Bxf6 Bxf6 15. Nxd5 Bd8 16.
Rd3 Re8 17. Rad1 Qe6 18. Qd2 Rc8 19. Qh6 {½-½ (63) Svicevic,R (2257)-Kiroski,
T (2226) Belgrade 2019}) 12... b5 {[%emt 0:11:11]} 13. a3 {[%emt 0:21:04]} (13.
e5 $14 Ne8 14. Nd5) 13... Rfc8 {[%emt 0:12:49] The position is equal.} 14. Bg5
{[%emt 0:00:00]} Ne8 {[%emt 0:14:52]} 15. Rac1 {[%emt 0:00:00]} h6 {[%emt 0:00:
00]} 16. Bh4 {[%emt 0:00:00]} Qa7 {[%emt 0:13:03]} 17. e5 {[%emt 0:01:37]} e6 {
[%emt 0:04:11] [#]} (17... Qb7 $11 {keeps the balance.}) 18. Bg3 {[%emt 0:00:
00] White is more active.} (18. exd6 $1 $16 {d5 is the strong threat.} Nxd6 19.
d5 exd5 20. Nxd5) 18... d5 $11 {[%emt 0:03:45]} 19. Bf4 {[%emt 0:01:08]} Na5 {
[%emt 0:02:03]} 20. h4 {[%emt 0:02:16]} Rc4 {[%emt 0:03:07]} (20... h5 $142)
21. Qe3 {[%emt 0:05:00]} h5 {[%emt 0:02:25]} 22. Bh6 {[%emt 0:02:53]} (22. b4
$5 {[%cal Rb4a5]} Nb7 23. Nd2 $14) 22... Nb3 {[%emt 0:02:59]} 23. Bxg7 {
[%emt 0:00:47]} Nxg7 {[%emt 0:02:15][%cal Ye8g7,Yg7f5,Yf5d4]} (23... Nxc1 $2
24. Bf6 Kh7 25. Ng5+ (25. Rxc1 Rac8 $18) 25... Kg8 26. Nf3 $18 (26. Rxc1 Nxf6
27. exf6 Qxd4 $11)) 24. Nxb5 {[%emt 0:00:21]} axb5 {[%emt 0:02:03]} 25. Qxb3 {
[%emt 0:00:06]} Rac8 {[%emt 0:02:13]} 26. Rc3 {[%emt 0:01:23]} Rxc3 {[%emt 0:
01:38]} 27. bxc3 {[%emt 0:00:04]} Qa5 {[%emt 0:00:05]} 28. Rb1 {[%emt 0:05:42]}
Nf5 {[%emt 0:00:44]} 29. Qxb5 {[%emt 0:00:23]} Qxb5 {[%emt 0:00:00]} 30. Rxb5 {
[%emt 0:00:07] [#] And now Rb3 would win.} Rxc3 {[%emt 0:00:00] Endgame KRN-KRN
} 31. Rb8+ {[%emt 0:01:02]} Kg7 {[%emt 0:00:10]} 32. Rb7 {[%emt 0:00:11][%cal
Yb8b7,Yb7f7,Yf7f6,Yf6e6,Ye6e7,Ye7d7]} Rxa3 {[%emt 0:00:30]} 33. Ng5 $1 {
[%emt 0:00:06][%csl Ye6,Yf7]} Nxd4 {[%emt 0:00:41]} 34. Rxf7+ {[%emt 0:00:17]}
Kg8 {[%emt 0:00:15]} 35. Rf6 {[%emt 0:00:30][%csl Ye6,Yg6]} Kg7 {[%emt 0:01:08]
} 36. Nxe6+ {[%emt 0:00:15]} Nxe6 {[%emt 0:00:09]} 37. Rxe6 $14 {[%emt 0:00:02]
KR-KR} Ra1+ {[%emt 0:00:35]} 38. Kh2 {[%emt 0:00:04]} Re1 {[%emt 0:01:55]} 39.
f4 {[%emt 0:01:49]} d4 {[%emt 0:01:32]} 40. Re7+ {[%emt 0:01:01]} ({Don't do} 
40. Rd6 $6 Re4 $16) 40... Kf8 {[%emt 0:00:37]} 41. Rd7 {[%emt 0:30:43]
Threatens to win with Rd8+.} Re4 {[%emt 0:30:14]} 42. Kg3 {[%emt 0:01:14]} Kg8
{[%emt 0:00:54]} 43. Kf3 {[%emt 0:00:00]} Re3+ {[%emt 0:00:07]} 44. Kf2 {
[%emt 0:00:21]} Re4 {[%emt 0:00:06]} 45. g3 {[%emt 0:00:58]} Kf8 {[%emt 0:00:
24]} 46. Ra7 {[%emt 0:00:00] Strongly threatening Ra3.} Re3 {[%emt 0:00:00]
Inhibits Ra3.} 47. Ra4 {[%emt 0:00:00]} Rd3 {[%emt 0:00:00]} 48. Ra6 {[%emt 0:
00:00]} Kf7 {[%emt 0:00:00]} 49. Rf6+ {[%emt 0:00:00]} Kg7 $1 {[%emt 0:00:00]}
50. Rd6 {[%emt 0:00:00]} Kf7 {[%emt 0:00:00]} 51. Kg2 {[%emt 0:00:00]} Kg7 {
[%emt 0:00:00]} 52. Rd7+ {[%emt 0:00:00]} Kf8 {[%emt 0:00:00]} 53. Kf2 {
[%emt 0:00:00]} Kg8 {[%emt 0:00:00]} 54. Rd6 {[%emt 0:00:00]} (54. Ra7 $14)
54... Kg7 {[%emt 0:00:00]} ({Black should play} 54... Kf7 $11) 55. Rb6 {
[%emt 0:00:00]} (55. Rf6 $14) 55... Kf7 $1 $11 {[%emt 0:00:00]} 56. Rf6+ {
[%emt 0:00:00]} Kg7 $1 {[%emt 0:00:00]} 57. f5 {[%emt 0:00:00]} ({Don't play} 
57. Rd6 $6 Kf7 58. Kg2 Kg7 59. Kf2 $16) 57... gxf5 {[%emt 0:00:00]} 58. Rxf5 {
[%emt 0:00:00]} Kg6 {[%emt 0:00:00]} 59. Rf6+ {[%emt 0:00:00]} Kg7 {[%emt 0:00:
00]} 60. Rf3 {[%emt 0:00:00]} Rd2+ {[%emt 0:00:00]} 61. Ke1 {[%emt 0:00:00]}
Ra2 {[%emt 0:00:00]} 62. Rf5 {[%emt 0:00:00]} Kg6 {[%emt 0:00:00]} 63. Rg5+ {
[%emt 0:00:21]} Kh6 $2 {[%emt 0:00:00] Black is on the road to losing.} (63...
Kf7 $11) 64. e6 $18 {[%emt 0:00:46]} Ra8 {[%emt 0:00:00]} 65. Kd2 {[%emt 0:01:
14] White wants to mate with e7.} Re8 {[%emt 0:00:00]} 66. Re5 {[%emt 0:00:10]}
Kg6 {[%emt 0:00:00]} 67. Kd3 {[%emt 0:02:28] e7 would kill now.} Kf6 {[%emt 0:
00:00]} 68. Kxd4 {[%emt 0:00:00] Threatening mate with e7.} ({Weaker is} 68.
Rxh5 Rg8 $14) 68... Rd8+ {[%emt 0:00:00]} 69. Ke4 {[%emt 0:00:12]} Rd1 {
[%emt 0:00:00]} 70. Rxh5 {[%emt 0:00:23]} Kxe6 {[%emt 0:00:00]} 71. Rh6+ {
[%emt 0:01:23]} Kf7 {[%emt 0:00:00]} 72. Rc6 {[%emt 0:00:30]} Rf1 {[%emt 0:00:
00]} 73. g4 {[%emt 0:02:08]} Kg7 {[%emt 0:00:00]} 74. h5 {[%emt 0:00:28]} Rf7 {
[%emt 0:00:00]} 75. Ke5 {[%emt 0:00:21]} Ra7 {[%emt 0:00:00]} 76. Kf5 {[%emt 0:
00:11]} Ra5+ {[%emt 0:00:00]} 77. Kf4 {[%emt 0:00:04]} Rb5 {[%emt 0:00:00]} 78.
Re6 {[%emt 0:00:33]} Ra5 {[%emt 0:00:00]} 79. Re5 {[%emt 0:00:15]} Ra7 {
[%emt 0:00:00]} 80. Kg5 {[%emt 0:00:14]} Ra6 {[%emt 0:00:00]} 81. Rb5 {[%emt 0:
01:35]} Rc6 {[%emt 0:00:00]} 82. Rb7+ {[%emt 0:02:47]} Kg8 {[%emt 0:00:00]} 83.
h6 {[%emt 0:00:36]} Rc5+ {[%emt 0:00:00]} 84. Kg6 {[%emt 0:00:07]} Rc6+ {
[%emt 0:00:00]} 85. Kh5 {[%emt 0:00:05]} Rc5+ {[%emt 0:00:00]} 86. g5 {[%emt 0:
00:04]} Ra5 {[%emt 0:00:00]} 87. Rb6 {[%emt 0:00:27]} Kh7 {[%emt 0:00:00]} 88.
Re6 {[%emt 0:00:32]} Rb5 {[%emt 0:00:00]} 89. Re7+ {[%emt 0:00:21]} Kg8 {
[%emt 0:00:00]} 90. Kg6 {[%emt 0:00:10][%cal Re7e8]} Rb8 {[%emt 0:00:00]} 91.
Re6 {[%emt 0:01:40]} Ra8 {[%emt 0:04:57]} 92. Kh5 {[%emt 0:00:19]} Ra5 {
[%emt 0:00:08]} 93. Kg6 {[%emt 0:00:00][%cal Re6e8]} Ra8 {[%emt 0:00:10]} 94.
Re5 {[%emt 0:00:05] White mates.} Ra6+ {[%emt 0:02:01]} 95. Kh5 {[%emt 0:00:04]
} Ra1 {[%emt 0:01:31]} 96. Rc5 {[%emt 0:00:59]} Kf7 {[%emt 0:02:31]} 97. Rc7+ {
[%emt 0:01:54]} Kg8 {[%emt 0:00:00]} 98. Rg7+ {[%emt 0:00:38]} Kh8 {[%emt 0:00:
24]} 99. Rf7 {[%emt 0:00:08]} Ra5 {[%emt 0:01:04]} 100. Kg6 {[%emt 0:00:27]
[%cal Rf7f8]} Ra6+ {[%emt 0:00:25]} 101. Rf6 {[%emt 0:00:04]} Ra8 {[%emt 0:00:
14]} 102. Rf5 {[%emt 0:01:05]} Kg8 {[%emt 0:01:01]} 103. Kh5 {[%emt 0:00:12]}
Ra1 {[%emt 0:00:17]} 104. g6 {[%emt 0:00:09]} Rh1+ {[%emt 0:02:13]} 105. Kg5 {
[%emt 0:00:03]} Rg1+ {[%emt 0:00:00]} 106. Kf6 {[%emt 0:00:04]} Rg2 {[%emt 0:
00:43]} 107. Ra5 {[%emt 0:01:54][%cal Ra5a8]} Rf2+ {[%emt 0:00:13]} 108. Kg5 {
[%emt 0:00:36]} Rg2+ {[%emt 0:00:00]} 109. Kf5 {[%emt 0:00:15][%cal Ra5a8]}
Rf2+ {[%emt 0:00:36]} 110. Ke4 {[%emt 0:00:14]} Re2+ {[%emt 0:00:39]} 111. Kf3
{[%emt 0:00:12]} Re8 {[%emt 0:00:00]} 112. Kf4 {[%emt 0:00:14]} Rb8 {[%emt 0:
00:35]} 113. Kg5 {[%emt 0:00:08]} Kh8 {[%emt 0:03:30]} 114. h7 {[%emt 0:00:20]
Weighted Error Value: White=0.10 (very precise) /Black=0.10 (very precise)} 1-0

[Event "44th Chess Olympiad Women 2022"]
[Site "Chennai"]
[Date "2022.07.30"]
[Round "2.6"]
[White "Balajayeva, Khanim"]
[Black "Paasikangas, Johanna"]
[Result "1-0"]
[WhiteElo "2344"]
[BlackElo "2155"]
[Annotator "TA"]
[PlyCount "85"]
[EventDate "2022.??.??"]
[TimeControl "60"]

{[%evp 24,85,27,31,37,23,43,20,77,52,54,50,113,79,134,135,145,124,152,120,136,
112,94,90,94,89,1781,14,7,16,16,19,27,23,17,0,0,0,7,0,0,-16,0,0,18,10,16,10,
295,295,286,55,327,327,324,322,315,255,612,600,770,770,758,596]} 1. e4 {
[%emt 0:00:30]} c5 {[%emt 0:00:30]} 2. Nf3 {[%emt 0:00:30]} a6 {[%emt 0:00:30]}
3. c3 {[%emt 0:00:30]} d5 {[%emt 0:00:30]} 4. exd5 {[%emt 0:00:30]} Qxd5 {
[%emt 0:00:30]} 5. d4 {[%emt 0:00:30]} cxd4 {[%emt 0:00:30]} 6. cxd4 {[%emt 0:
00:00]} e6 {[%emt 0:00:30]} 7. Nc3 {[%emt 0:00:30]} Qa5 {[%emt 0:00:30]} 8. Bd2
{[%emt 0:00:30]} Nc6 {[%emt 0:00:30]} 9. Bc4 {[%emt 0:00:30]} Qd8 {[%emt 0:00:
00]} 10. Be3 {[%emt 0:00:30]} Nf6 {[%emt 0:00:30]} 11. O-O {[%emt 0:00:30]} Be7
{[%emt 0:00:30]} 12. a3 {[%emt 0:00:30]} O-O {[%emt 0:00:30]} 13. Ba2 {[%emt 0:
00:00]} Nd5 {[%emt 0:00:30] [#] B10: Caro-Kann: 2 d3 and 2 c4.} 14. Qd3 $146 {
[%emt 0:00:30]} ({Predecessor:} 14. Rc1 Bf6 15. Ne4 Nce7 16. Qd3 b6 17. Bb1 Ng6
18. Nxf6+ Nxf6 19. Bg5 Bb7 20. Rfd1 h6 21. Bxf6 gxf6 {1-0 (40) Krivolapov,K 
(2365)-Jacso,A (1987) Gyongyos 2003}) 14... Bf6 {[%emt 0:00:30]} 15. Ne4 {
[%emt 0:00:30]} (15. Bb1 $5 {[%cal Rd3h7]} g6 16. Bh6 $11) 15... Nxe3 {[%emt 0:
00:00]} (15... Nce7 $11 {keeps the balance.}) 16. Nxf6+ {[%emt 0:00:30]} Qxf6 {
[%emt 0:00:30]} 17. fxe3 {[%emt 0:00:30][%cal Yf2e3,Ye3e4,Ye4d5]} Qg6 {[%emt 0:
00:30]} (17... Bd7 $14) 18. e4 {[%emt 0:00:30]} b5 {[%emt 0:00:30]} ({Black
should play} 18... Bd7) 19. Qc3 $16 {[%emt 0:00:30]} Bb7 {[%emt 0:00:30]} (
19... Qxe4 $2 20. Rae1 Qf4 21. Qxc6 $18) 20. d5 {[%emt 0:00:30]} exd5 {[%emt 0:
00:30]} 21. exd5 {[%emt 0:00:30]} ({And not} 21. Bxd5 Ne7 $11) 21... Nd8 {
[%emt 0:00:30]} 22. Nh4 {[%emt 0:00:30]} Qb6+ {[%emt 0:00:30]} 23. Kh1 {
[%emt 0:00:30] White is more active.} Bc8 {[%emt 0:00:30]} 24. Rae1 {[%emt 0:
00:00]} Nb7 $2 {[%emt 0:00:30] [#]} (24... a5 $16) 25. Qg3 $2 {[%emt 0:00:30]}
(25. Rxf7 $1 $18 {[%csl Gf7][%cal Rc3g7]} Qf6 26. Rxf6 Rxf6 27. d6+ Be6 28.
Bxe6+ Kh8 29. Qc7 Nxd6 30. Qxd6) 25... Qd6 $11 {[%emt 0:00:30]} 26. Qd3 {
[%emt 0:00:30]} Nc5 {[%emt 0:00:30]} 27. Qc2 {[%emt 0:00:00]} Bd7 {[%emt 0:00:
30]} 28. Nf3 $40 {[%emt 0:00:30] Threatens to win with Ng5. White has some
attack.} Rac8 {[%emt 0:00:30]} 29. Bb1 {[%emt 0:00:30][%csl Gb1][%cal Rc2h7]}
f5 {[%emt 0:00:30]} 30. Qd2 {[%emt 0:00:00]} Rce8 {[%emt 0:00:30]} 31. Ba2 {
[%emt 0:00:30]} Ne4 {[%emt 0:00:30]} 32. Qd4 {[%emt 0:00:30]} Qh6 {[%emt 0:00:
30] White must now prevent ...Ng3+.} 33. Kg1 {[%emt 0:00:30] And now d6+ would
win.} Kh8 {[%emt 0:00:30]} 34. Rc1 {[%emt 0:00:30]} Rc8 {[%emt 0:00:30]} 35.
Rxc8 {[%emt 0:00:30]} Rxc8 {[%emt 0:00:00]} (35... Bxc8 $11 36. Bb1 Nd6) 36.
Ne5 $18 {[%emt 0:00:30] Strongly threatening Nf7+.} Qf6 {[%emt 0:00:30] [#]
Against Nf7+} 37. Rd1 $2 {[%emt 0:00:30]} (37. d6 $1 $18) 37... Rd8 $2 {
[%emt 0:00:30] [#]} (37... Re8 $1 $14 38. Nxd7 Qd6) 38. d6 $1 {[%emt 0:00:30]}
Be6 {[%emt 0:00:30] Inhibits Nf7+.} 39. Bxe6 {[%emt 0:00:30]} Qxe6 {[%emt 0:00:
30]} 40. d7 {[%emt 0:00:30] aiming for Qd5.} Kg8 $2 {[%emt 0:00:30]} (40... h5
41. h3 Kh7) 41. Rc1 {[%emt 0:30:30][%cal Yc1c8] Intending Rc8! and mate. White
is clearly winning.} Nd6 {[%emt 0:30:30] Against Rc8} 42. Qb6 $1 {[%emt 0:00:
30][%csl Ya6,Yd8]} ({Not} 42. Rc6 Rxd7 43. Rxa6 h6 $16) 42... Qf6 {[%emt 0:00:
30]} 43. Rd1 {[%emt 0:00:30] Weighted Error Value: White=0.49/Black=0.53} 1-0

[Event "44th Chess Olympiad Women 2022"]
[Site "Chennai"]
[Date "2022.07.30"]
[Round "2.6"]
[White "Fataliyeva, Ulviyya"]
[Black "Norlamo, Sarabella"]
[Result "1-0"]
[WhiteElo "2372"]
[BlackElo "1925"]
[Annotator "TA"]
[PlyCount "133"]
[EventDate "2022.??.??"]
[TimeControl "60"]

{[%evp 15,133,0,22,25,29,35,35,29,35,28,32,33,44,34,56,67,73,52,57,42,89,63,64,
64,88,63,106,96,154,76,81,70,174,10,13,0,0,-52,-14,-43,-38,-152,-85,-133,-138,
-139,0,-66,-27,-14,-8,-43,-30,-124,-94,-132,-144,-169,-148,-143,-137,-193,-124,
-250,-252,-242,-240,-240,-251,-320,-165,-520,-516,-685,-42,-154,-144,-141,-35,
-312,-312,-313,380,380,317,270,268,232,329,277,266,49,183,26,397,392,12830,
12831,10191,7046,2744,1885,12841,12841,12841,12842,12843,12843,12844,12843,
12847,12847,29991,29992,29994,29994,29995,29995,29995,29996]} 1. d4 {[%emt 0:
00:00]} Nf6 {[%emt 0:00:07]} 2. c4 {[%emt 0:00:04]} e6 {[%emt 0:00:07]} 3. Nf3
{[%emt 0:00:05]} b6 {[%emt 0:00:31]} 4. g3 {[%emt 0:00:04]} Bb7 {[%emt 0:00:09]
} 5. Bg2 {[%emt 0:00:06]} Be7 {[%emt 0:00:16]} 6. Nc3 {[%emt 0:00:56]} Ne4 {
[%emt 0:03:09]} 7. Bd2 {[%emt 0:04:26]} O-O {[%emt 0:08:59]} 8. O-O {[%emt 0:
00:00]} f5 {[%emt 0:04:39]} 9. Ne5 $1 {[%emt 0:03:21] E18: Queen's Indian: Old
Main Line (4 g3 Bb7 5 Bg2 Be7 6 0-0 0-0 7 Nc3).} Nxc3 {[%emt 0:12:29]} 10. Bxc3
{[%emt 0:00:26]} Bxg2 {[%emt 0:00:06]} 11. Kxg2 {[%emt 0:00:05][%cal Ye2e4]
White is slightly better.} Qc8 {[%emt 0:07:15]} 12. Re1 {[%emt 0:06:23] [#]}
Qb7+ $146 {[%emt 0:05:48]} ({Predecessor:} 12... b5 13. e4 Qb7 14. d5 d6 15.
Nf3 Nd7 16. Nd4 Nc5 17. exf5 e5 18. Nc6 Bf6 {1-0 (37) Troff,K (2543)-Harmon
Vellotti,L (2409) Las Vegas 2016}) 13. f3 {[%emt 0:01:14]} Bf6 {[%emt 0:11:26]}
14. e4 {[%emt 0:08:18]} fxe4 {[%emt 0:07:57]} 15. Rxe4 {[%emt 0:02:32]} d5 {
[%emt 0:02:39]} 16. Re1 {[%emt 0:06:48] White is more active.} dxc4 {[%emt 0:
00:00]} 17. Nxc4 {[%emt 0:01:04]} Qc6 {[%emt 0:03:59]} (17... Qd5 $14 18. Ne3
Qd7) 18. Qd3 {[%emt 0:15:24]} Nd7 {[%emt 0:02:55]} 19. Re4 {[%emt 0:00:21]}
Rae8 {[%emt 0:03:31]} 20. Rae1 {[%emt 0:01:26]} Qd5 {[%emt 0:04:59]} 21. Qe2 {
[%emt 0:11:12][%cal Re4e6]} Kf7 {[%emt 0:00:05]} (21... Rd8 $142) 22. Ne3 {
[%emt 0:02:55]} (22. a4 $142) 22... Qxa2 $16 {[%emt 0:01:41]} 23. Qb5 {[%emt 0:
00:00]} Re7 {[%emt 0:02:00]} (23... Rd8 $14) 24. Re2 $2 {[%emt 0:04:50]} ({
White must play} 24. Qf1 $1 $18 {Black must now prevent Ra1.} c6 25. Ra1) 24...
a6 $11 {[%emt 0:01:16]} 25. Qh5+ {[%emt 0:14:10] White has compensation.} Kg8 {
[%emt 0:00:01]} 26. Ng4 {[%emt 0:01:53]} (26. Bb4 c5 27. Ba3 (27. dxc5 bxc5 28.
Ba3 Ref7 $15) 27... g6 $17) (26. Nf5 $11 exf5 27. Rxe7 Bxe7 28. Rxe7) 26... g6
{[%emt 0:03:45]} 27. Qh3 {[%emt 0:00:19]} Bg7 {[%emt 0:00:00]} 28. Nf2 {
[%emt 0:07:57]} (28. Rxe6 $15 Ref7 29. Re7) 28... Rfe8 {[%emt 0:01:32]} (28...
Rf5 $142 $1 29. g4 Rb5) 29. Nd3 {[%emt 0:03:07]} (29. Ng4 $142) 29... Nf6 $1
$17 {[%emt 0:00:46]} 30. Re5 {[%emt 0:03:02]} Nd7 {[%emt 0:00:17]} ({Black
should try} 30... Nd5 $17 31. R5e4 Qc4) 31. R5e3 {[%emt 0:00:12]} (31. R5e4 $1
$11) 31... Qc4 {[%emt 0:00:42]} 32. Nf4 $1 {[%emt 0:00:59][%cal Re3e6]} Nf8 {
[%emt 0:00:17]} 33. Re4 {[%emt 0:00:55][%cal Yd4d5]} (33. Qg4 $5 {[%cal Rd4d5]}
) 33... Qb3 {[%emt 0:00:39] Prevents d5.} 34. g4 {[%emt 0:00:29]} (34. Qg4 $11)
34... b5 {[%emt 0:00:27][%cal Yb6b5,Yb5b4]} 35. g5 {[%emt 0:00:29]} b4 {
[%emt 0:00:17]} 36. Be1 {[%emt 0:00:07]} c6 {[%emt 0:00:31]} 37. Qg4 {[%emt 0:
00:35]} a5 $1 {[%emt 0:00:29]} 38. h4 {[%emt 0:00:31]} (38. R4e3 Qc4 39. Re4
Qb5 $17) (38. Bg3 $17 {was called for.}) 38... a4 {[%emt 0:00:37]} ({Better is
} 38... e5 $19 39. Bf2 Qf7 40. dxe5 Rxe5 41. Rxe5 Rxe5 42. Rxe5 Bxe5) 39. d5 {
[%emt 0:00:50]} (39. R4e3 $17 Qc4 40. Nd3) 39... cxd5 $19 {[%emt 0:00:58]} 40.
Rxb4 {[%emt 0:00:26]} Qd1 {[%emt 0:00:36]} 41. Kf1 {[%emt 0:10:05]} Rf7 {
[%emt 0:18:09]} (41... e5 42. Rd2 Qc1 43. Nxd5 $11) 42. Ng2 {[%emt 0:09:00]} d4
{[%emt 0:01:11]} (42... Nd7 $142 43. Rd2 Qxf3+ 44. Qxf3 Rxf3+ 45. Ke2 Ne5 46.
Rxa4 Ref8) 43. Kf2 $2 {[%emt 0:03:29]} (43. Qe4 {was the crucial defense.})
43... Rc8 {[%emt 0:04:44] aiming for ...d3.} 44. Qe4 {[%emt 0:04:24]} Rfc7 $2 {
[%emt 0:05:53]} (44... d3 $19 45. Re3 Rd8) 45. Kg3 {[%emt 0:04:25] [#]} ({
White should play} 45. Nf4 $1 $15) 45... Rc2 $1 $17 {[%emt 0:01:24]} 46. Rxc2 {
[%emt 0:00:50]} Qxc2 {[%emt 0:00:12]} (46... Rxc2 $17 47. Nf4 e5) 47. Qb7 $2 {
[%emt 0:01:24]} (47. Nf4 $1 $15) 47... d3 $19 {[%emt 0:01:09] Strongly
threatening ...d2.} ({Not} 47... Be5+ $2 48. f4 Rc7 49. Qa8 $17) 48. Ne3 {
[%emt 0:00:28]} Rc7 {[%emt 0:01:34]} 49. Nxc2 $18 {[%emt 0:00:30]} Rxb7 {
[%emt 0:00:07]} 50. Rxb7 {[%emt 0:00:12]} dxc2 {[%emt 0:00:07] Endgame KRB-KBN}
51. Bd2 {[%emt 0:00:02] Hoping for Bc1.} Bd4 {[%emt 0:01:02]} (51... Nd7 $142
52. Rxd7 Bxb2) 52. f4 {[%emt 0:00:00]} e5 {[%emt 0:00:20]} 53. fxe5 $2 {
[%emt 0:00:56]} (53. Rc7 $18) 53... Ne6 {[%emt 0:00:32] [#]} (53... Bxe5+ $14
54. Kg4 Ne6) 54. Kf3 $2 {[%emt 0:00:25]} (54. Kg4 $1 $18) 54... Nc5 $2 {
[%emt 0:00:08]} (54... Bxe5 $11 55. Rb4 Nc5) 55. Rc7 {[%emt 0:00:28]} Bxb2 $2 {
[%emt 0:01:05]} (55... Kf8 56. Ke2 (56. Rxh7 Bxe5 57. Bc1 Nb3 $11) 56... Ke8)
56. Rxc5 {[%emt 0:00:32]} a3 {[%emt 0:00:01]} 57. Rc8+ {[%emt 0:00:29]} Kf7 {
[%emt 0:00:11]} 58. Ra8 {[%emt 0:00:33] Ke4 is the strong threat.} c1=Q {
[%emt 0:00:12]} 59. Bxc1 {[%emt 0:00:05]} Bxc1 {[%emt 0:00:05] KR-KB} 60. Ke4 {
[%emt 0:00:08]} Bb2 {[%emt 0:00:26]} 61. Kd5 {[%emt 0:00:11] White threatens
e6+ and mate.} Ke7 {[%emt 0:00:36]} 62. Ra7+ {[%emt 0:00:37]} Kd8 {[%emt 0:00:
14]} 63. Kd6 {[%emt 0:00:09][%cal Ra7a8]} Kc8 {[%emt 0:00:10]} 64. e6 {[%emt 0:
00:12][%cal Ye5e6,Ye6e7] White mates.} Kb8 {[%emt 0:00:14]} 65. Ra4 {[%emt 0:
00:00]} Bc3 {[%emt 0:00:25]} 66. Kd7 {[%emt 0:00:09]} a2 {[%emt 0:00:34]} 67.
e7 {[%emt 0:00:10] White used his chance. Weighted Error Value: White=0.64/
Black=0.62} 1-0